bitfinex-derivatives/quotes_ETHF0:USTF0_20250105
["timestamp","ask_amount","ask_price","bid_price","bid_amount"]
[1736092488830,1.65004,3633.7,3633.4,0.70086]
[1736092489031,1.65004,3633.7,3633.4,0.4531]
[1736092489327,1.65004,3633.7,3633.4,0.70086]
[1736092489527,1.4023,3633.7,3633.4,0.4531]
[1736092489731,1.24717396,3633.6,3633.4,0.4531]
[1736092490725,0.99942396,3633.6,3633.4,0.4531]
[1736092491142,1.24717396,3633.6,3633.4,0.4531]
[1736092492036,0.99942396,3633.6,3633.2,1.563]
[1736092492236,0.24777,3633.3,3633.2,1.563]
[1736092492428,0.99942396,3633.4,3633.0,1.565]
[1736092492635,1.93322396,3633.2,3633.0,1.565]
[1736092493539,0.24778,3633.1,3633.0,0.483]
[1736092493741,0.24778,3633.1,3632.9,6.47840503]
[1736092494045,0.24778,3633.1,3632.8,1.5516]
[1736092494046,0.99942396,3633.0,3632.8,1.5516]
[1736092494337,0.99942396,3633.0,3632.8,2.55102396]
[1736092494738,0.99942396,3633.0,3632.8,1.5516]
[1736092495535,0.99942396,3633.0,3632.8,1.7994]
[1736092497237,0.4965,3633.1,3632.8,1.7994]
[1736092497631,0.4965,3633.1,3632.9,0.99942396]
[1736092497833,0.4965,3633.1,3632.9,1.24721396]
[1736092498542,0.4965,3633.1,3632.9,0.99942396]
[1736092499736,0.4965,3633.1,3632.9,1.24721396]
[1736092500139,0.4965,3633.1,3632.9,0.99942396]
[1736092500333,0.4965,3633.1,3632.9,1.24721396]
[1736092501838,0.4657,3633.2,3632.9,1.24721396]
[1736092503245,0.99942396,3633.1,3632.9,0.24779]
[1736092503842,0.99942396,3633.1,3632.8,1.5516]
[1736092504150,0.4955,3633.0,3632.8,1.79939]
[1736092505244,0.4955,3633.0,3632.8,1.5516]
[1736092506044,0.4955,3633.0,3632.8,1.7994]
[1736092506546,0.4955,3633.0,3632.9,0.24779]
[1736092506950,0.4657,3633.2,3633.0,0.24779]
[1736092507647,0.4657,3633.2,3632.9,1.24721396]
[1736092509244,0.4657,3633.2,3633.0,0.24778]
[1736092510248,0.99942396,3633.1,3632.9,0.24779]
[1736092510644,0.4677,3633.0,3632.9,0.24779]
[1736092512849,0.4677,3633.0,3632.8,1.7994]
[1736092513149,0.4677,3633.0,3632.8,1.5516]
[1736092513352,0.4677,3633.0,3632.9,0.24779]
[1736092515150,0.4657,3633.2,3633.0,0.24778]
[1736092515646,0.4657,3633.2,3633.1,0.4713]
[1736092516454,0.4657,3633.2,3633.1,0.71908]
[1736092517549,0.4657,3633.2,3633.1,0.4713]
[1736092518450,0.4657,3633.2,3633.1,0.71908]
[1736092522247,3.2078,3633.5,3633.4,0.24776]
[1736092524853,1.92372396,3633.6,3633.4,0.24776]
[1736092525051,1.92372396,3633.6,3633.1,0.4713]
[1736092525352,0.99942396,3633.2,3633.0,1.082]
[1736092525649,1.44812396,3633.1,3633.0,1.082]
[1736092525855,2.39482396,3633.1,3633.0,1.082]
[1736092526853,2.39482396,3633.1,3633.0,1.32979]
[1736092529053,2.39482396,3633.1,3633.0,1.082]
[1736092532761,4.55604319,3633.1,3633.0,1.082]
[1736092534160,5.63855264,3633.1,3633.0,1.082]
[1736092535853,5.63855264,3633.1,3632.9,0.24779]
[1736092537257,5.63855264,3633.1,3632.9,6.47840503]
[1736092537659,5.63855264,3633.1,3632.9,6.72619503]
[1736092538265,2.39482396,3633.1,3633.0,4.84281041]
[1736092558479,1.94702396,3633.1,3633.0,4.84281041]
[1736092558677,0.9476,3633.1,3633.0,5.09060041]
[1736092559681,1.94702396,3633.1,3633.0,5.09060041]
[1736092560579,5.19735473,3633.1,3633.0,11.56900544]
[1736092562384,5.19735473,3633.1,3633.0,11.32121544]
[1736092563682,1.94702396,3633.1,3633.0,4.84281041]
[1736092565088,1.94702396,3633.1,3633.0,5.09060041]
[1736092567584,1.94702396,3633.1,3633.0,4.84281041]
[1736092568387,2.19480396,3633.1,3633.0,4.84281041]
[1736092569188,7.35364161,3633.1,3632.7,7.53863785]
[1736092569379,4.45502396,3632.8,3632.7,4.33083785]
[1736092570491,0.24781,3632.6,3632.5,4.33083785]
[1736092570689,1.24723396,3632.6,3632.5,4.33083785]
[1736092571188,1.68483396,3632.6,3632.5,4.33083785]
[1736092572290,1.68483396,3632.6,3632.4,4.57866785]
[1736092572590,1.68483396,3632.6,3632.4,4.33083785]
[1736092573596,3.24923778,3632.5,3632.4,4.33083785]
[1736092574589,3.24923778,3632.5,3632.3,4.76063785]
[1736092574794,0.99942396,3632.4,3632.3,4.76063785]
[1736092575587,1.24725396,3632.4,3632.3,4.33083785]
[1736092575991,3.41272153,3632.4,3632.3,4.33083785]
[1736092577295,0.24783,3632.3,3632.2,4.33083785]
[1736092577500,0.67353,3632.3,3632.2,4.33083785]
[1736092578302,0.4257,3632.3,3632.2,4.33083785]
[1736092579301,0.4257,3632.3,3632.0,5.44338785]
[1736092579502,0.99942396,3632.1,3632.0,5.44338785]
[1736092581107,0.99942396,3632.1,3632.0,5.19553785]
[1736092581308,0.99942396,3632.1,3632.0,5.44338785]
[1736092583198,1.42512396,3632.3,3632.0,1.11255]
[1736092583402,2.16370363,3632.4,3632.3,0.24783]
[1736092583708,0.84960363,3632.4,3632.3,0.24783]
[1736092584412,3.68713778,3633.0,3632.3,4.83665878]
[1736092584609,3.68713778,3633.0,3632.9,0.24779]
[1736092585406,3.16843777,3633.0,3632.9,1.24721396]
[1736092585613,1.11983778,3633.0,3632.9,6.24721396]
[1736092586109,1e-08,3633.4,3633.3,0.24777]
[1736092586413,1e-08,3633.4,3633.3,4.45499396]
[1736092586711,1e-08,3633.4,3633.3,5.45441792]
[1736092587115,1e-08,3633.4,3633.3,5.67146707]
[1736092587714,0.24769,3634.4,3633.8,0.24773]
[1736092587913,0.24769,3634.4,3633.9,1.32872]
[1736092589210,3.09029707,3634.2,3633.9,1.081]
[1736092589414,0.24772,3634.1,3633.9,1.081]
[1736092590511,3.09029707,3634.2,3633.9,1.081]
[1736092590707,0.24772,3634.0,3633.9,1.081]
[1736092591617,0.24773,3633.9,3633.4,0.24776]
[1736092591812,0.24773,3633.9,3633.5,1.081]
[1736092591813,2.46362707,3633.8,3633.5,1.081]
[1736092593819,2.21589707,3633.8,3633.5,1.081]
[1736092594019,2.21589707,3633.8,3633.1,7.52534992]
[1736092594220,2.46365707,3633.5,3633.1,8.60634992]
[1736092594513,0.8385,3633.4,3633.1,8.60634992]
[1736092594916,0.8385,3633.4,3633.1,8.85411992]
[1736092595315,0.8385,3633.4,3633.1,4.53657]
[1736092597925,0.8385,3633.4,3633.1,4.2888]
[1736092598215,0.8385,3633.4,3633.1,4.53657]
[1736092598919,0.8385,3633.4,3633.1,4.2888]
[1736092599218,0.8385,3633.4,3633.2,0.24777]
[1736092599614,0.8385,3633.4,3633.1,4.2888]
[1736092599918,0.8385,3633.4,3633.1,4.53658]
[1736092600313,3.2078,3634.1,3633.7,0.24774]
[1736092600622,0.4349,3633.8,3633.6,0.24774]
[1736092601419,2.65079707,3633.8,3633.3,4.31754992]
[1736092601621,2.89852707,3633.8,3633.4,0.24776]
[1736092607215,0.4349,3633.8,3633.7,0.24774]
[1736092608411,0.4349,3633.8,3633.4,3.2078]
[1736092608617,0.4349,3633.8,3633.6,0.24774]
[1736092611015,1.43508759,3633.8,3633.6,0.24774]
[1736092613427,1.43508759,3633.8,3633.4,4.45574759]
[1736092613622,1.43508759,3633.8,3633.5,0.24775]
[1736092616231,1.43508759,3633.8,3633.3,0.24776]
[1736092616232,1.00018759,3633.6,3633.3,0.24776]
[1736092616434,0.4091,3633.5,3633.3,0.24776]
[1736092616625,0.849,3633.5,3633.3,0.24776]
[1736092617725,0.849,3633.5,3633.4,0.24776]
[1736092620431,0.849,3633.5,3633.4,3.45556]
[1736092623331,1.84918759,3633.5,3633.4,3.2078]
[1736092623527,1.84918759,3633.5,3633.3,0.24776]
[1736092624932,1.84918759,3633.5,3633.2,0.24777]
[1736092625130,1.00018759,3633.3,3633.1,1.081]
[1736092625333,0.4199,3633.2,3633.1,1.32878]
[1736092625727,0.4199,3633.2,3633.1,0.24778]
[1736092625930,0.4199,3633.2,3633.1,1.32778]
[1736092626632,0.4199,3633.2,3633.1,0.24778]
[1736092626833,0.4199,3633.2,3633.1,1.32778]
[1736092628731,0.4199,3633.2,3633.1,5.64532992]
[1736092628932,0.4199,3633.2,3633.1,5.39754992]
[1736092630034,0.4199,3633.2,3633.1,5.64532992]
[1736092630434,0.4199,3633.2,3633.1,3.64334992]
[1736092630728,0.4199,3633.2,3633.1,2.29494992]
[1736092630729,0.66767,3633.2,3633.1,2.29494992]
[1736092630934,0.66767,3633.2,3633.1,4.95160758]
[1736092632536,0.66767,3633.2,3632.9,0.24779]
[1736092632740,1.00018759,3633.0,3632.9,0.24779]
[1736092636338,1.00018759,3633.0,3632.8,0.2478]
[1736092636538,0.4271,3632.9,3632.8,0.2478]
[1736092640440,0.8604,3632.9,3632.8,0.2478]
[1736092644649,0.8604,3632.9,3632.6,10.68431247]
[1736092644849,1.00018759,3632.8,3632.6,9.68412488]
[1736092645050,0.412,3632.7,3632.6,3.2078]
[1736092646750,0.65981,3632.7,3632.6,3.2078]
[1736092646951,0.412,3632.7,3632.6,3.2078]
[1736092647248,0.412,3632.7,3632.5,1.081]
[1736092647451,0.65981,3632.7,3632.5,1.081]
[1736092648445,0.412,3632.7,3632.5,1.081]
[1736092656558,1.00018759,3632.6,3632.5,1.081]
[1736092658355,1.00018759,3632.6,3632.5,1.32882]
[1736092658856,0.412,3632.7,3632.5,1.32882]
[1736092663254,0.412,3632.7,3632.5,0.24782]
[1736092663461,1.00018759,3632.6,3632.3,6.48195704]
[1736092663755,1.00018759,3632.4,3632.3,6.48195704]
[1736092663959,1.24801759,3632.4,3632.3,6.48195704]
[1736092664162,2.13351759,3632.4,3632.3,6.48195704]
[1736092664966,2.13351759,3632.4,3632.2,3.2078]
[1736092668570,1.88568759,3632.4,3632.2,3.2078]
[1736092669066,2.13351759,3632.4,3632.2,3.2078]
[1736092670369,1.88568759,3632.4,3632.2,3.2078]
[1736092670570,2.13351759,3632.4,3632.2,3.2078]
[1736092671868,0.24783,3632.3,3632.2,3.2078]
[1736092672070,2.13351759,3632.4,3632.2,3.2078]
[1736092672371,1.88568759,3632.4,3632.2,3.2078]
[1736092672869,2.13351759,3632.4,3632.2,3.2078]
[1736092679566,1.88568759,3632.4,3632.2,3.2078]
[1736092679770,1.88568759,3632.4,3632.2,3.45564]
[1736092680072,1.88568759,3632.4,3632.2,3.2078]
[1736092680268,2.13351759,3632.4,3632.2,3.2078]
[1736092681474,1.88568759,3632.4,3632.2,3.2078]
[1736092681976,2.13351759,3632.4,3632.2,3.2078]
[1736092684677,1.88568759,3632.4,3632.2,3.45564]
[1736092684879,2.13351759,3632.4,3632.2,3.2078]
[1736092685079,1.88568759,3632.4,3632.2,3.2078]
[1736092685375,1.88568759,3632.4,3632.2,3.45564]
[1736092688680,1.88568759,3632.4,3632.2,3.2078]
[1736092688978,2.13351759,3632.4,3632.2,3.2078]
[1736092689477,1.88568759,3632.4,3632.2,3.2078]
[1736092689874,1.88568759,3632.4,3632.2,3.45564]
[1736092690081,1.88568759,3632.4,3632.2,3.2078]
[1736092690284,2.13351759,3632.4,3632.2,3.2078]
[1736092691880,5.37724921,3632.4,3632.2,3.2078]
[1736092696182,5.37724921,3632.4,3632.1,0.24784]
[1736092696391,1.00018759,3632.2,3632.1,0.24784]
[1736092697682,1.00018759,3632.2,3632.1,5.14884771]
[1736092698884,1.00018759,3632.2,3632.1,11.63080475]
[1736092699080,1.00018759,3632.2,3632.1,11.38296475]
[1736092700078,1.00018759,3632.2,3632.1,11.63081475]
[1736092700285,1.00018759,3632.2,3632.1,11.38296475]
[1736092702795,1.00018759,3632.2,3632.1,11.63081475]
[1736092704080,1.00018759,3632.2,3632.1,5.14885771]
[1736092705187,1.00018759,3632.2,3632.1,4.90100771]
[1736092705387,3.16689721,3632.2,3632.1,4.90100771]
[1736092705785,3.16689721,3632.2,3632.1,5.14885771]
[1736092706290,3.16689721,3632.2,3632.1,4.90100771]
[1736092706995,3.16689721,3632.2,3632.1,5.14885771]
[1736092707891,1.00018759,3632.2,3632.1,5.14885771]
[1736092708497,1.00018759,3632.2,3632.1,4.90100771]
[1736092708998,1.00018759,3632.2,3632.1,5.14885771]
[1736092709501,4.65211921,3632.2,3632.1,5.14885771]
[1736092714403,4.65211921,3632.2,3632.1,4.90100771]
[1736092715495,5.9001468,3632.2,3632.1,4.90100771]
[1736092716296,5.9001468,3632.2,3632.1,0.99210771]
[1736092716487,12.79352493,3632.2,3632.1,0.31780771]
[1736092716692,12.79352493,3632.2,3632.0,8.63509984]
[1736092716693,0.24785,3632.1,3632.0,8.63509984]
[1736092717000,3.45565,3632.1,3632.0,8.63509984]
[1736092717204,15.44918778,3632.1,3632.0,8.63509984]
[1736092717396,0.24787,3631.7,3631.6,6.48965439]
[1736092717596,4.45585759,3631.7,3631.6,6.48965439]
[1736092718897,0.2479,3631.3,3631.1,1.44620187]
[1736092719200,0.2479,3631.3,3631.1,1.10891]
[1736092719397,0.24791,3631.2,3631.1,0.861]
[1736092719701,1.44818759,3631.2,3631.1,1.10892]
[1736092720097,1.69609759,3631.2,3631.1,0.861]
[1736092720295,3.86027382,3631.2,3631.1,0.861]
[1736092720697,4.61255141,3631.2,3630.9,0.4165]
[1736092720899,1.24810759,3631.0,3630.8,0.24793]
[1736092721105,1.00018759,3630.9,3630.8,0.24793]
[1736092721399,1.24811759,3630.9,3630.7,1.08604]
[1736092721795,1.00018759,3630.9,3630.7,0.8381]
[1736092722205,1.24811759,3630.9,3630.7,1.08604]
[1736092722395,1.24811759,3630.9,3630.8,0.24794]
[1736092722396,1.00018759,3630.9,3630.8,0.24794]
[1736092722903,1.00018759,3630.9,3630.7,0.8381]
[1736092723103,1.24811759,3630.9,3630.7,0.8381]
[1736092723595,1.24811759,3630.9,3630.7,1.08604]
[1736092723902,1.24811759,3630.9,3630.7,0.8381]
[1736092726208,0.24794,3630.8,3630.7,0.4274]
[1736092726397,0.24794,3630.8,3630.7,0.8763]
[1736092729205,0.66104,3630.8,3630.7,0.4274]
[1736092729604,0.24795,3630.6,3630.4,0.419]
[1736092729812,0.24795,3630.6,3630.4,0.8645]
[1736092730016,1.00018759,3630.5,3630.4,0.8645]
[1736092731611,1.00018759,3630.5,3630.4,1.11246]
[1736092732909,1.00018759,3630.5,3630.4,0.8645]
[1736092735411,1.00018759,3630.5,3630.4,1.11246]
[1736092735614,1.00018759,3630.5,3630.4,0.8645]
[1736092735916,1.00018759,3630.5,3630.4,1.11246]
[1736092740721,1.00018759,3630.7,3630.5,0.24795]
[1736092742015,1.00018759,3630.7,3630.4,0.8645]
[1736092742323,1.00018759,3630.5,3630.4,1.11246]
[1736092743512,0.4388,3631.3,3630.4,1.48441]
[1736092743717,0.4388,3631.3,3630.9,0.24793]
[1736092743718,1.00018759,3631.0,3630.9,0.24793]
[1736092745517,1.00018759,3631.0,3630.8,0.24793]
[1736092745719,1.00018759,3631.0,3630.9,0.67863]
[1736092745915,1.00018759,3631.0,3630.9,0.4307]
[1736092746119,1.24810759,3631.0,3630.9,0.4307]
[1736092746519,0.24792,3631.0,3630.9,0.4307]
[1736092747526,2.00037518,3631.1,3630.7,0.4124]
[1736092747727,1.00018759,3630.8,3630.6,3.2078]
[1736092747916,0.4189,3630.7,3630.6,3.2078]
[1736092748423,0.24796,3630.4,3630.2,3.2078]
[1736092748623,1.41518759,3630.3,3630.2,3.2078]
[1736092749922,1.66315759,3630.3,3630.2,3.2078]
[1736092750424,1.41518759,3630.3,3630.2,3.2078]
[1736092750627,1.66315759,3630.3,3630.2,3.2078]
[1736092751026,0.415,3630.3,3629.8,0.4414]
[1736092751223,2.22096569,3629.9,3629.8,0.4414]
[1736092752525,2.22096569,3629.9,3629.6,3.2078]
[1736092752728,0.4451,3629.8,3629.6,3.2078]
[1736092753829,0.69311,3629.8,3629.6,3.2078]
[1736092754028,0.24801,3629.7,3629.6,3.2078]
[1736092754228,0.6931,3629.8,3629.6,3.2078]
[1736092754527,0.24801,3629.7,3629.6,3.2078]
[1736092754730,0.4451,3629.8,3629.4,0.407]
[1736092754930,0.24801,3629.7,3629.4,0.65503]
[1736092755335,0.4451,3629.8,3629.4,0.407]
[1736092755630,2.46898569,3629.6,3629.3,0.66084]
[1736092756033,2.46898569,3629.6,3629.3,0.4128]
[1736092756239,2.46898569,3629.6,3629.3,0.8306]
[1736092759429,2.22096569,3629.6,3629.3,0.8306]
[1736092760027,2.22096569,3629.6,3629.3,1.07864]
[1736092760331,2.22096569,3629.6,3629.3,0.8306]
[1736092762033,2.46898569,3629.6,3629.3,0.8306]
[1736092763231,2.22096569,3629.6,3629.3,0.8306]
[1736092765231,2.46898569,3629.6,3629.3,0.8306]
[1736092765428,2.22096569,3629.6,3629.3,0.8306]
[1736092767338,2.22096569,3629.6,3629.3,1.07864]
[1736092769439,0.4451,3629.8,3629.3,0.8306]
[1736092769639,0.4451,3629.8,3629.5,0.24802]
[1736092769841,0.4451,3629.8,3629.6,0.4328]
[1736092770239,0.4451,3629.8,3629.7,0.4053]
[1736092773149,1.44758438,3629.8,3629.7,0.4053]
[1736092773442,1.44758438,3629.8,3629.7,0.65331]
[1736092774139,5.37197623,3630.2,3629.7,0.4053]
[1736092774347,2.16417623,3630.2,3629.9,1.00248438]
[1736092774548,2.16417623,3630.2,3630.1,0.24798]
[1736092775044,1.00248438,3630.2,3630.1,0.24798]
[1736092777047,1.00248438,3630.2,3630.1,3.2078]
[1736092777550,1.00248438,3630.2,3630.1,0.24798]
[1736092779248,1.00248438,3630.2,3629.9,4.3113573]
[1736092779450,1.00248438,3630.2,3630.0,0.24799]
[1736092779951,1.00248438,3630.2,3630.0,3.45579]
[1736092780653,1.00248438,3630.2,3630.1,0.24798]
[1736092780854,1.00248438,3630.2,3630.1,0.68618]
[1736092781553,2.16417623,3630.8,3630.1,1.44068438]
[1736092781856,1.00248438,3630.7,3630.4,4.45824438]
[1736092782057,1.00248438,3630.7,3630.5,0.4365]
[1736092782954,1.25042438,3630.7,3630.5,0.4365]
[1736092783345,1.00248438,3630.7,3630.5,0.4365]
[1736092783552,1.00248438,3630.7,3630.5,0.68445]
[1736092787158,1.00248438,3630.7,3630.5,0.4365]
[1736092787862,1.00248438,3630.7,3630.5,0.68446]
[1736092788358,1.00248438,3630.7,3630.6,0.4161]
[1736092789354,1.25042438,3630.7,3630.6,0.4161]
[1736092789560,0.24795,3630.6,3630.5,0.4365]
[1736092792159,1.00248438,3630.6,3630.5,0.4365]
[1736092792357,1.25043438,3630.6,3630.5,0.4365]
[1736092795068,1.00248438,3630.6,3630.5,0.4365]
[1736092797769,1.25043438,3630.6,3630.3,0.4161]
[1736092797963,1.00248438,3630.4,3630.3,0.8473]
[1736092799257,1.00248438,3630.4,3630.3,1.09527]
[1736092799767,1.00248438,3630.6,3630.3,0.8473]
[1736092799963,1.00248438,3630.6,3630.4,0.24796]
[1736092800385,2.60357623,3630.8,3630.4,0.24796]
[1736092800588,0.24795,3630.7,3630.4,0.24796]
[1736092801205,0.24795,3630.7,3630.3,0.8473]
[1736092801514,0.4394,3630.8,3630.3,0.8473]
[1736092803088,0.24796,3630.4,3630.3,0.8473]
[1736092803488,0.24796,3630.5,3630.3,1.09527]
[1736092803890,0.24796,3630.5,3630.3,0.8473]
[1736092804388,0.24796,3630.4,3630.3,0.8473]
[1736092805692,0.4394,3630.8,3630.3,0.8473]
[1736092806187,0.24796,3630.5,3630.3,1.09526]
[1736092806593,0.24796,3630.5,3630.3,0.8473]
[1736092807089,0.24798,3630.1,3630.0,1.079]
[1736092807298,1.25022438,3630.1,3630.0,1.079]
[1736092807591,0.248,3629.8,3629.7,4.0532]
[1736092807796,0.248,3629.8,3629.7,5.1322]
[1736092807990,1.3132,3630.4,3629.7,5.1322]
[1736092807991,1.25024438,3629.9,3629.7,5.1322]
[1736092808189,1.25024438,3629.9,3629.8,1.08]
[1736092808586,1.25024438,3629.9,3629.8,1.4856]
[1736092809689,0.248,3629.8,3629.7,0.4108]
[1736092810093,0.6962,3629.8,3629.7,0.4108]
[1736092810294,1.1247,3629.8,3629.7,0.4108]
[1736092811097,0.6962,3629.8,3629.7,0.4108]
[1736092811297,0.6962,3629.8,3629.7,0.8465]
[1736092812495,0.4482,3629.8,3629.5,11.87734172]
[1736092812693,0.24802,3629.6,3629.5,11.87734172]
[1736092812889,0.24802,3629.6,3629.5,10.79734172]
[1736092813200,0.4482,3629.8,3629.4,6.27356284]
[1736092813401,0.24803,3629.5,3629.4,6.27356284]
[1736092813896,0.24803,3629.5,3629.4,6.68606284]
[1736092815689,0.4482,3629.8,3629.4,6.68606284]
[1736092816194,0.24802,3629.6,3629.4,6.68606284]
[1736092816799,0.24803,3629.5,3629.4,6.68606284]
[1736092817302,0.24802,3629.6,3629.4,6.68606284]
[1736092820995,0.24802,3629.6,3629.4,5.60606284]
[1736092822005,0.24802,3629.6,3629.4,1.2866]
[1736092823603,0.4366,3629.7,3629.4,1.2866]
[1736092823800,0.4366,3629.7,3629.4,1.53463]
[1736092824000,0.68461,3629.7,3629.4,1.53463]
[1736092824705,0.4482,3629.8,3629.6,0.24802]
[1736092824908,0.4482,3629.8,3629.4,1.2866]
[1736092825206,2.16360046,3630.0,3629.5,3.2078]
[1736092825400,2.16360046,3630.0,3629.8,0.248]
[1736092825601,2.16360046,3630.0,3629.9,0.8636]
[1736092825801,2.16360046,3630.0,3629.9,2.359]
[1736092826497,2.82968046,3630.2,3629.9,2.359]
[1736092826803,2.82968046,3630.2,3629.9,2.607]
[1736092827001,2.82968046,3630.2,3629.9,2.359]
[1736092827002,0.24799,3630.0,3629.9,2.359]
[1736092827204,2.58170046,3630.2,3629.9,2.359]
[1736092827402,0.24799,3630.1,3629.9,2.359]
[1736092827602,0.24799,3630.0,3629.9,2.359]
[1736092827811,0.24799,3630.0,3629.9,1.9341]
[1736092828001,0.4181,3630.2,3629.6,0.4355]
[1736092828205,0.4354,3629.9,3629.8,0.248]
[1736092828406,0.4354,3629.9,3629.6,1.5155]
[1736092828600,0.6834,3629.9,3629.7,0.24801]
[1736092829006,0.248,3629.8,3629.6,1.32801]
[1736092829211,0.4166,3629.7,3629.6,1.32801]
[1736092832913,0.4166,3629.7,3629.6,1.08]
[1736092835014,1.41914544,3629.7,3629.6,1.08]
[1736092835316,1.66715544,3629.7,3629.6,1.08]
[1736092837925,1.66715544,3629.7,3629.6,1.32802]
[1736092837926,1.41914544,3629.7,3629.6,1.32802]
[1736092838422,1.41914544,3629.7,3629.6,1.08]
[1736092839817,1.41914544,3629.7,3629.5,0.68622]
[1736092840019,1.66715544,3629.7,3629.5,0.68622]
[1736092840422,1.41914544,3629.7,3629.5,0.4382]
[1736092840624,0.24802,3629.6,3629.5,0.4382]
[1736092842023,2.41162046,3629.6,3629.5,0.4382]
[1736092843325,0.24803,3629.5,3629.3,3.88763]
[1736092843529,1.66637544,3629.5,3629.4,0.24803]
[1736092843826,0.24803,3629.4,3629.3,3.45584]
[1736092844329,1.66637544,3629.5,3629.4,0.24803]
[1736092845627,1.41834544,3629.5,3629.4,0.24803]
[1736092846226,1.66637544,3629.5,3629.4,0.24803]
[1736092847027,1.66637544,3629.5,3629.3,3.45584]
[1736092848326,1.41834544,3629.5,3629.3,3.2078]
[1736092848526,1.41834544,3629.5,3629.1,1.9389]
[1736092848527,7.8528229,3629.4,3628.9,1.85190961]
[1736092848721,5.21289088,3629.0,3628.8,1.85190961]
[1736092848926,1.68031544,3628.9,3628.8,1.85190961]
[1736092849233,0.24808,3628.7,3628.6,8.63892569]
[1736092849430,1.25062544,3628.7,3628.6,8.63892569]
[1736092849633,13.12373312,3628.7,3628.6,8.63892569]
[1736092850430,12.87565312,3628.7,3628.1,0.4462]
[1736092850728,3.2078,3628.2,3628.1,0.4462]
[1736092850931,4.21034544,3628.2,3628.1,0.4462]
[1736092851233,3.2078,3628.2,3628.1,0.69432]
[1736092852035,0.24812,3628.1,3627.8,0.24813]
[1736092852222,0.24812,3628.1,3627.8,0.66643]
[1736092852428,6.70154424,3628.2,3627.9,0.24813]
[1736092853526,5.61810517,3628.2,3627.9,0.24813]
[1736092853935,0.24813,3628.1,3627.8,0.66644]
[1736092854132,5.36998517,3628.2,3627.8,0.4183]
[1736092854331,2.22346652,3628.0,3627.8,0.4183]
[1736092854537,0.24813,3627.9,3627.8,0.4183]
[1736092855231,2.47159652,3628.0,3627.8,0.4183]
[1736092857236,0.24813,3627.9,3627.8,0.4183]
[1736092857740,2.22346652,3628.0,3627.8,0.4183]
[1736092858035,2.47159652,3628.0,3627.8,0.4183]
[1736092859435,0.24813,3627.9,3627.8,0.4183]
[1736092860641,2.47159652,3628.0,3627.8,0.4183]
[1736092861044,2.22346652,3628.0,3627.9,0.24813]
[1736092861340,3.2078,3628.2,3627.9,0.24813]
[1736092861538,2.16218517,3628.4,3627.8,3.6261]
[1736092861735,2.16218517,3628.4,3628.3,3.45591]
[1736092861935,0.13768517,3628.4,3628.3,4.53591]
[1736092862436,3.24562424,3628.5,3628.4,0.2481]
[1736092862643,3.24562424,3628.5,3628.4,1.3281]
[1736092863142,3.2078,3629.1,3628.4,1.08]
[1736092863342,3.45585,3629.1,3628.4,1.08]
[1736092863743,3.45585,3629.1,3628.7,0.24808]
[1736092863938,3.2078,3629.1,3628.8,0.24807]
[1736092864138,3.2078,3629.1,3628.4,1.08]
[1736092864445,3.2078,3629.1,3629.0,0.24806]
[1736092865739,3.2078,3629.5,3629.4,0.24803]
[1736092867543,3.24562424,3629.7,3629.6,0.24802]
[1736092868040,3.2078,3630.0,3629.1,3.30246652]
[1736092868241,3.45579,3630.0,3629.7,0.24801]
[1736092868444,6.89660417,3629.8,3629.7,0.24801]
[1736092868846,2.47146652,3629.9,3629.6,0.24801]
[1736092869046,7.04193156,3629.8,3629.6,0.24801]
[1736092869249,7.04193156,3629.8,3629.1,1.079]
[1736092869447,2.47149652,3629.5,3629.2,0.24804]
[1736092869745,2.47149652,3629.5,3629.2,1.32704]
[1736092870445,2.22346652,3629.5,3629.2,1.079]
[1736092870649,0.24804,3629.4,3629.2,1.079]
[1736092871844,0.24804,3629.3,3629.2,1.079]
[1736092872450,5.67929652,3629.5,3629.2,1.079]
[1736092872649,5.43126652,3629.5,3629.2,1.079]
[1736092872854,0.24803,3629.4,3629.2,1.079]
[1736092873243,0.24803,3629.4,3629.1,0.24805]
[1736092873749,0.24806,3629.0,3628.9,4.2868]
[1736092873943,3.2078,3629.1,3628.5,0.4144]
[1736092874152,3.2078,3628.6,3628.3,1.079]
[1736092874346,0.2481,3628.4,3628.3,1.079]
[1736092874550,0.2481,3628.4,3628.1,4.97382]
[1736092874745,2.22346652,3628.5,3628.1,4.7257]
[1736092874946,2.63186652,3628.5,3628.0,0.4334]
[1736092875153,2.63186652,3628.5,3627.5,14.00514172]
[1736092875154,0.24812,3628.1,3627.9,1.079]
[1736092875354,0.24813,3628.0,3627.9,1.079]
[1736092875548,0.24812,3628.2,3627.9,1.32713]
[1736092875749,0.2481,3628.4,3627.6,4.7202]
[1736092875955,3.2078,3628.6,3628.4,0.2481]
[1736092876156,2.22346652,3628.8,3628.0,3.2078]
[1736092876348,2.47154652,3628.8,3628.1,0.4242]
[1736092876549,6.92376706,3628.7,3628.6,0.24809]
[1736092877044,6.92376706,3628.7,3628.2,0.4222]
[1736092877249,6.92376706,3628.7,3628.6,0.24809]
[1736092879459,7.17184706,3628.7,3628.5,0.24809]
[1736092879659,6.92376706,3628.7,3628.5,0.24809]
[1736092879859,7.17184706,3628.7,3628.5,0.24809]
[1736092880854,7.17184706,3628.7,3628.4,0.6879]
[1736092882158,6.92376706,3628.7,3628.4,0.4398]
[1736092882350,6.92376706,3628.7,3628.6,0.24809]
[1736092882556,3.24562424,3629.2,3628.6,3.2078]
[1736092882760,3.24562424,3629.2,3629.1,0.24805]
[1736092883062,3.24562424,3629.2,3629.1,1.32705]
[1736092883264,3.24562424,3629.2,3629.1,1.76815]
[1736092883450,3.24562424,3629.2,3629.1,3.99161652]
[1736092884261,4.32749899,3629.4,3629.3,0.24804]
[1736092884564,3.23797734,3630.1,3630.0,0.24799]
[1736092884860,3.23797734,3630.1,3630.0,1.32699]
[1736092886164,0.432,3630.3,3630.0,1.079]
[1736092886660,0.4346,3630.6,3630.2,0.24798]
[1736092886860,3.6407,3630.8,3630.1,2.22346652]